Cogmind - Beta 13 @@@ ROGUE MODE // 2024.04.23 @ 17:47:58 Player: opaguck Result: Destroyed by YI-UF0 with YI-UF0's Doublenader Performance ------------- Evolutions (1) 500 Regions Visited (4) 800 Robots Destroyed (20) 100 Value Destroyed (554) 554 Prototype IDs (0) 0 Alien Tech Used (0) 0 Bonus (0) 0 TOTAL SCORE: 1954 Bonus ------- None Cogmind --------- Core Integrity 0/400 Matter 185/300 Energy 100/100 System Corruption 0% Temperature Cool (0) Movement Core (200) Ox3 Location -9/Mines Parts ------- > --- POWER (1) -------- (None) > --- PROPULSION (2) --- (None) > --- UTILITY (3) ------ Medium Storage Unit Signal Interpreter > --- WEAPON (3) ------- Mini Grenade Launcher > --- INVENTORY (10) --- Experimental Sensor Array Signal Interpreter Datajack Explosive Trap Explosive Trap Explosive Trap Explosive Trap Peak State ------------ > --- POWER ------------ Ion Engine > --- PROPULSION ------- Light Treads Light Treads > --- UTILITY ---------- Improved Heat Sink Medium Storage Unit Signal Interpreter > --- WEAPON ----------- Medium Laser Medium Laser Rocket Launcher > --- INVENTORY -------- Flight Unit Flight Unit Signal Interpreter Mini Grenade Launcher Datajack Explosive Trap Explosive Trap Explosive Trap Explosive Trap [Rating: 13] Favorites ----------- Power Ion Engine Engine Ion Engine Propulsion Light Treads Treads Light Treads Wheel Compact Wheel Utility Signal Interpreter Device Improved Heat Sink Storage Medium Storage Unit Processor Signal Interpreter Weapon Medium Laser Energy Gun Medium Laser Ballistic Gun Assault Rifle Launcher Rocket Launcher Build | -11 -10 -10 -9 -9 ------- Run | Yrd Mat Min Mat Min Slots Evolved 2 | . . . 2 . Power . | . . . . . Propulsion . | . . . . . Utility 1 | . . . 1 . Weapon 1 | . . . 1 . Parts Attached 19 | 5 3 5 4 2 Power 2 | 1 . 1 . . Engine 2 | 1 . 1 . . Core . | . . . . . Reactor . | . . . . . Propulsion 7 | 2 1 2 2 . Treads 4 | . . 2 2 . Leg . | . . . . . Wheel 3 | 2 1 . . . Hover . | . . . . . Flight . | . . . . . Utility 3 | . 2 . 1 . Device 1 | . . . 1 . Storage 1 | . 1 . . . Processor 1 | . 1 . . . Hackware . | . . . . . Protection . | . . . . . Artifact . | . . . . . Weapon 7 | 2 . 2 1 2 Energy Gun 2 | . . 2 . . Energy Cannon . | . . . . . Ballistic Gun 2 | 2 . . . . Ballistic Cannon . | . . . . . Launcher 3 | . . . 1 2 Special Weapon . | . . . . . Impact Weapon . | . . . . . Slashing Weapon . | . . . . . Piercing Weapon . | . . . . . Special Melee Weapon . | . . . . . Unidentified Prototypes . | . . . . . Parts Lost 10 | . 1 1 . 8 Power 1 | . . . . 1 Propulsion 4 | . 1 1 . 2 Utility 1 | . . . . 1 Weapon 4 | . . . . 4 Highest Loss Streak 7 | . 1 1 . 7 To Critical Strikes . | . . . . . Average Slot Usage (%) 92 | . 85 96 98 82 Engine 12 | . 14 14 11 7 Treads 14 | . . 16 20 15 Wheel 8 | . 26 7 . . Device 4 | . . . 11 7 Storage 10 | . 3 14 11 11 Processor 12 | . 12 14 11 11 Energy Gun 14 | . . 16 22 16 Ballistic Gun 9 | . 28 11 . . Launcher 5 | . . . 11 11 Naked Turns . | . . . . . Heaviest Build 24 | 9 19 19 24 24 Greatest Support 40 | 26 32 40 40 40 Greatest Overweight (x) 3 | . 1 1 . 3 Average Overweight (x) . | . . . . . Largest Inventory Capacity 10 | 5 10 10 10 10 Average Capacity 9 | 5 6 10 10 10 Most Carried 10 | 3 8 10 10 10 Average Carried 8 | 1 4 8 9 8 Final Capacity 10 | 5 10 10 10 10 Final Carried 10 | 2 8 10 10 7 Class Distribution -------------------- 56% | Mutant 43% | Gunner Dominant Class ---------------- Mutant | -10/Materials Mutant | -10/Mines Gunner | -9/Materials Gunner | -9/Mines Resources | -11 -10 -10 -9 -9 ----------- Run | Yrd Mat Min Mat Min Matter Collected 521 | 205 161 49 95 11 Remotely . | . . . . . Salvage Created 666 | . 120 38 366 142 Parts 30 | . 6 2 13 9 Haulers Intercepted 2 | . 1 . 1 . Recyclers Shooed 1 | . 1 . . . Parts Field Recycled . | . . . . . Retrieved Matter . | . . . . . Parts Self-Destructed . | . . . . . Prevented . | . . . . . Kills | -11 -10 -10 -9 -9 ------- Run | Yrd Mat Min Mat Min Combat Hostiles Destroyed 18 | . 1 2 9 6 Guns 9 | . 1 2 3 3 AOE 9 | . . . 6 3 Classes Destroyed 6 | . 3 1 1 1 Hauler 2 | . 1 . 1 . Operator 1 | . 1 . . . Swarmer 5 | . . 2 . 3 Grunt 9 | . 1 . 8 . Sentry 3 | . . . 1 2 Assembled 1 | . . . . 1 Best Kill Streak 4 | . 1 2 4 3 Combat Bots Only 3 | . 1 2 3 3 Max Kills in Single Turn 4 | . 1 1 4 2 Gunslinging . | . . . . . Exploded 3 | . . . 3 2 Melee . | . . . . . Uniques/NPCs Destroyed . | . . . . . Combat | -11 -10 -10 -9 -9 -------- Run | Yrd Mat Min Mat Min Hostile Shots Fired 134 | . 40 7 31 56 Missed 49 | . 13 3 14 19 Damage Taken 1523 | . 383 32 216 892 Core 479 | . 63 8 67 341 Absorbed by Shields . | . . . . . Regen/Repaired (Parts) 177 | . . . 177 . Core Remaining (%) 85 | 100 . 71 . . Volleys Fired 53 | . 23 3 18 9 Largest 2 | . 2 2 2 2 Hottest 100 | . 40 100 100 100 Shots Fired 103 | . 46 6 33 18 Gun 90 | . 46 6 30 8 Cannon . | . . . . . Launcher 13 | . . . 3 10 Special . | . . . . . Kinetic 46 | . 46 . . . Thermal 44 | . . 6 30 8 Explosive 13 | . . . 3 10 Electromagnetic . | . . . . . Robot Hit Streak 10 | . 10 2 6 3 Robot Miss Streak 3 | . 3 2 3 2 Penetration Max . | . . . . . Secondary Targets 1 | . . . . 1 Max Gunslinging Chain 1 | . . . . 1 Shots Hit Robots 57 | . 30 2 18 7 Core Hits 38 | . 10 3 16 9 Critical Kills . | . . . . . Critical Parts Destroyed 1 | . 1 . . . Critical Strikes 4 | . 1 . 2 1 Burn 3 | . . . 2 1 Destroy 1 | . 1 . . . Melee Attacks . | . . . . . Impact . | . . . . . Slashing . | . . . . . Piercing . | . . . . . Sneak Attacks . | . . . . . Combat Hostiles . | . . . . . Follow-up Attacks . | . . . . . Damage Inflicted 1165 | . 411 31 466 257 Guns 711 | . 408 26 213 64 Cannons . | . . . . . Explosions 433 | . . . 240 193 Melee . | . . . . . Ramming 21 | . 3 5 13 . Kinetic 408 | . 408 . . . Thermal 303 | . . 26 213 64 Explosive 433 | . . . 240 193 Electromagnetic . | . . . . . Impact . | . . . . . Slashing . | . . . . . Piercing . | . . . . . Highest Corruption 5 | . . 5 . . Average Corruption 5 | . . 5 . . Corruption Purged . | . . . . . Corruption Blocked . | . . . . . Effects 7 | . . 7 . . Message Errors 3 | . . 3 . . Heat Flow Errors 1 | . . 1 . . Energy Discharges 1 | . . 1 . . Data Loss (minor) 1 | . . 1 . . Data Loss (major) 1 | . . 1 . . Overload Shots . | . . . . . Overflow Damage 5 | . . . . 5 Projectiles . | . . . . . Explosions 5 | . . . . 5 Melee . | . . . . . Knockbacks 1 | . . . 1 . Impact 1 | . . . 1 . Kinetic . | . . . . . Secondary . | . . . . . Self-Inflicted Damage 52 | . 1 2 23 26 Shots 3 | . . . 2 1 Rammed 3 | . 1 1 1 . Targets Rammed 3 | . 1 1 1 . Kicked . | . . . . . Crushed . | . . . . . Highest Temperature 244 | . 7 244 2 . Average Temperature 90 | . 2 162 2 . Received Heat Transfer 381 | . 258 . 105 18 Siege Activations . | . . . . . Robots Corrupted . | . . . . . Combat Hostiles . | . . . . . Parts Fried . | . . . . . Impact Corruptions . | . . . . . Robots Melted . | . . . . . Combat Hostiles . | . . . . . Parts Melted 2 | . . . 1 1 Heat Transferred 1110 | . . 74 777 259 Parts Sabotaged . | . . . . . Parts Stolen . | . . . . . Parts Stripped . | . . . . . Power Chain Reactions . | . . . . . Alert | -11 -10 -10 -9 -9 ------- Run | Yrd Mat Min Mat Min Peak Influence 230 | . 114 55 230 117 Initial 46 | . . 40 21 46 Average 63 | . 72 30 85 78 Maximum Alert Level 1 | . . . 1 . Low Security (%) 95 | 100 100 100 86 100 Level 1 4 | . . . 13 . Level 2 . | . . . . . Level 3 . | . . . . . Level 4 . | . . . . . Level 5 . | . . . . . High Security . | . . . . . Max Security . | . . . . . Squads Dispatched 4 | . 1 . 3 . Investigation 2 | . . . 2 . Extermination . | . . . . . Reinforcement 2 | . 1 . 1 . Assault . | . . . . . Garrison . | . . . . . Intercept . | . . . . . Searches Triggered . | . . . . . Construction Impeded . | . . . . . Haulers Reinforced . | . . . . . Active Scanning Responses . | . . . . . Cargo Convoy Interrupts . | . . . . . Stealth | -11 -10 -10 -9 -9 --------- Run | Yrd Mat Min Mat Min Distress Signals . | . . . . . Communications Jammed . | . . . . . Distress Signals . | . . . . . Times Spotted 40 | . 6 4 13 17 Peak Tracking Total 9 | . 2 3 5 9 Tactical Retreats 3 | . . 1 1 1 Traps | -11 -10 -10 -9 -9 ------- Run | Yrd Mat Min Mat Min Traps Triggered . | . . . . . Indirectly . | . . . . . Trap Hack Attempts . | . . . . . Triggered . | . . . . . Disarmed . | . . . . . Reprogrammed . | . . . . . Reused . | . . . . . Traps Extracted . | . . . . . Installed . | . . . . . Triggered . | . . . . . Most Traps Carried 4 | . . 4 4 4 Machines | -11 -10 -10 -9 -9 ---------- Run | Yrd Mat Min Mat Min Machines Disabled 5 | . 1 . 2 2 Max in Single Turn 2 | . 1 . 1 2 Machines Repaired . | . . . . . Machines Dismantled . | . . . . . Machines Sabotaged . | . . . . . Overloaded Fab Kills . | . . . . . Hacking | -11 -10 -10 -9 -9 --------- Run | Yrd Mat Min Mat Min Machines Accessed 6 | . 2 . 4 . Terminals 4 | . 2 . 2 . Fabricators . | . . . . . Repair Stations 2 | . . . 2 . Recycling Units . | . . . . . Scanalyzers . | . . . . . Garrison Access . | . . . . . Total Hacks 17 | . 4 . 13 . Successful 12 | . 4 . 8 . Failed 5 | . . . 5 . Catastrophic . | . . . . . Database Lockouts . | . . . . . Manual . | . . . . . Terminals 11 | . 4 . 7 . Fabricators . | . . . . . Repair Stations 6 | . . . 6 . Recycling Units . | . . . . . Scanalyzers . | . . . . . Garrison Access . | . . . . . Terminal Hacks 8 | . 4 . 4 . Locate Traps 2 | . 1 . 1 . Dispatch Records 1 | . . . 1 . Transport Status 1 | . 1 . . . Investigation Status 1 | . . . 1 . Recall Investigation 1 | . . . 1 . Zone Layout 2 | . 2 . . . Fabricator Hacks . | . . . . . Repair Station Hacks 4 | . . . 4 . Scan Component 2 | . . . 2 . Repair 2 | . . . 2 . Recycling Unit Hacks . | . . . . . Scanalyzer . | . . . . . Garrison Access Hacks . | . . . . . Unauthorized Hacks . | . . . . . Terminals . | . . . . . Fabricators . | . . . . . Repair Stations . | . . . . . Recycling Units . | . . . . . Scanalyzers . | . . . . . Garrison Access . | . . . . . Data Cores Recovered 1 | . 1 . . . Used 1 | . 1 . . . Hacking Detections 5 | . 1 . 4 . Full Trace Events 2 | . . . 2 . Feedback Events . | . . . . . Feedback Blocked . | . . . . . Robot Schematics Acquired . | . . . . . Robots Built . | . . . . . Authchips . | . . . . . Time . | . . . . . Total Robot Build Rating . | . . . . . Part Schematics Acquired . | . . . . . Parts Built . | . . . . . Authchips . | . . . . . Time . | . . . . . Total Part Build Rating . | . . . . . Parts Repaired 2 | . . . 2 . Time 52 | . . . 52 . Parts Recycled . | . . . . . Recycled Matter . | . . . . . Retrieved Matter . | . . . . . Retrieved Components . | . . . . . Parts Scanalyzed . | . . . . . Part Schematics Acquired . | . . . . . Parts Damaged . | . . . . . Bothacking | -11 -10 -10 -9 -9 ------------ Run | Yrd Mat Min Mat Min Used RIF Installer . | . . . . . Robots Hacked . | . . . . . Non-combat . | . . . . . Combat . | . . . . . Robot Hacks Applied . | . . . . . Relay Couplers Released . | . . . . . Fabnet Peak Effective % . | . . . . . Robots Rewired . | . . . . . Allies Hacked . | . . . . . Hacks Repelled . | . . . . . Allies | -11 -10 -10 -9 -9 -------- Run | Yrd Mat Min Mat Min Total Allies . | . . . . . Largest Group . | . . . . . Highest-Rated Group . | . . . . . Highest-Rated Ally . | . . . . . Total Orders . | . . . . . Ally Attacks . | . . . . . Total Damage . | . . . . . Kills . | . . . . . Allies Corrupted . | . . . . . Allies Melted . | . . . . . Intel | -11 -10 -10 -9 -9 ------- Run | Yrd Mat Min Mat Min Robot Analysis Total . | . . . . . Derelict Logs Recovered 1 | . . 1 . . Drone Launches . | . . . . . Drone Recoveries . | . . . . . Exploration | -11 -10 -10 -9 -9 ------------- Run | Yrd Mat Min Mat Min Turns Passed 1573 | 45 345 440 495 248 Spaces Moved 867 | 41 169 300 234 123 Core 18 | 3 . . . 15 Treads 497 | . . 155 234 108 Legs . | . . . . . Wheels 352 | 38 169 145 . . Hover . | . . . . . Flight . | . . . . . Fastest Speed 50 | 50 90 100 160 160 Average Speed 136 | 86 94 135 160 166 Slowest Speed 240 | 90 115 160 160 240 Overloaded Moves . | . . . . . Propulsion Burnouts . | . . . . . Robots Hopped . | . . . . . Cave-ins Triggered . | . . . . . Exploration Rate (%) 34 | 3 33 74 22 40 Regions Visited 4 Branch Regions 2 Pre-discovered Areas 1 | . . 1 . . Known Exits Taken 3 | . 1 1 1 . Unknown Exits Taken 1 | 1 . . . . Scrap Searched 2 | . . 1 . 1 Spaces Dug . | . . . . . Terrain Destroyed 77 | . . . 27 50 Melee . | . . . . . Projectile . | . . . . . AOE 77 | . . . 27 50 Terrain Rammed . | . . . . . Walls Destroyed . | . . . . . Machines Disabled . | . . . . . Actions | -11 -10 -10 -9 -9 --------- Run | Yrd Mat Min Mat Min Total 1155 | 48 306 330 320 151 Wait 190 | . 105 9 62 14 Move 863 | 40 168 299 233 123 Hop . | . . . . . Pick Up 19 | 3 6 7 2 1 Fast Attach 11 | 4 3 2 2 . Attach 8 | 1 . 3 2 2 Detach . | . . . . . Swap . | . . . . . Drop 8 | . . 6 . 2 Fire 53 | . 23 3 18 9 Melee . | . . . . . Ram 2 | . 1 1 . . Kick . | . . . . . Crush 1 | . . . 1 . Escape Stasis . | . . . . . Rewire . | . . . . . Trap . | . . . . . Miscellaneous . | . . . . . Route ------- -11/Scrapyard -10/Materials -10/Mines -9/Materials -9/Mines History --------- Turn | Location | Event 6 | -11/Scrapyard | Discovered new exit (range 15) 46 | -11/Scrapyard | Entered Materials 324 | -10/Materials | Build established: Mutant 357 | -10/Materials | Discovered new exit (range 16) 389 | -10/Materials | Identified exit to Mines 391 | -10/Materials | Entered Mines 425 | -10/Mines | Received a Rocket Launcher from a helpful Derelict 508 | -10/Mines | Found a hidden stash of uninstalled traps 809 | -10/Mines | Discovered new exit (range 4) 822 | -10/Mines | Identified exit to Materials 831 | -10/Mines | Entered Materials 831 | -9/Materials | Evolved 2 slots: Utility x1, Weapon x1 900 | -9/Materials | Discovered new exit (range 16) 971 | -9/Materials | Repaired Lgt. Treads 1092 | -9/Materials | Repaired Lgt. Treads 1113 | -9/Materials | Build established: Gunner 1324 | -9/Materials | Identified exit to Mines 1326 | -9/Materials | Entered Mines 1370 | -9/Mines | Found a damaged Exp. Sensor Array with a note attached 1374 | -9/Mines | Found Prototype Device 1435 | -9/Mines | Assembled infested the area 1440 | -9/Mines | Assisted by a Guerilla fighting off Assembled 1504 | -9/Mines | Core integrity fell below 50% 1524 | -9/Mines | Core integrity fell below 20% 1539 | -9/Mines | Joined a pair of Derelicts in attacking an 0b10 outpost 1554 | -9/Mines | Lost 7 parts (1p2n1u3w) 1574 | -9/Mines | Destroyed by YI-UF0 with YI-UF0's Doublenader Last Messages --------------- 01556_ as-23564 destroyed. 01557_ U-05 Engineer lays Concrete. 01558_ U-05 Engineer builds a Wall. 01560_ The unstable cave ceiling collapses. 01565_ U-05 Engineer destroyed. 01567_ The unstable cave ceiling collapses. 01569_ X8-GJ9(g): "By picking off the easy targets here, we can draw a trickle of reinforcements and keep pressure off our more trafficked cave areas." 01569_ The unstable cave ceiling collapses. 01570_ YI-UF0: "KABOOM!" 01570_ X8-GJ9(g) destroyed. 01571_ R-06 Scavenger collects Seismic Detector. 01572_ YI-UF0 suffers critical hit (Burn). 01573_ The unstable cave ceiling collapses. 01574_ Mni. Grenade Launcher destroyed. 01574_ Destroyed Mni. Grenade Launcher. 01574_ YI-UF0: "BWOOM!" 01574_ YZ-02A(g) destroyed. Map ----- +----------------------------------------------------+ | ?????????? ## ### """ | | ?????????????# ###### """ | | ?????????????# ####????## | | ?????????????###### ##????????## | | ??????????????????## ##??????????## | | ???????????????????# #?????????????# | | ???????????????????# ##?????????????# | | ???????????????????# ####??????????? | | ???????????????????# #??????????? | | ???????????????????# #??????????? | | ???????????????????# ### #?????????? | | ???????????????????## #### #???????? | | ????????????????????# #???????? | | ????????# ### #??????? | | ?????????????# % ######??????# | | ?????????##??## #### #?????????## | | ????????## ????????# ####???### | | ????????# ??????### % #### | | ????????? ????### # | | ?????????# ??## ru % | | ????????## ### | | ?????#### # # # | | ?????# % # # | | ??????? # ! # ###### | | ?????????## g ###### | | ?????????# @ | | ?????????## ###### | | ?????????## ####### | | ??######## [ % % %= | | ??# % [ | | ??# ! ####### ##### ##### | | ??## ![/ #?????### #???# #???? | | ??# ![% ###?????# #???# ???? | | ??## [%* ##????# #???### ??? | | ??# !! #????# #?????? #?? | | ??## ] # #???# #???????#?? | | ???####### ?????????? | | ??????##?# # # # ######?????????? | | ?????????## ####### ##??????????????? | | ??????????####??????####???????????????? | | ???????????????????????????????????????? | | ???????????????????????????????????????? | | ???????????????????????????????????????? | | ???????????????????????????????????????? | | ???????????????????????????????????????? | | ???????????????????????????????????????? | | ???????????????????????????????????????? | | ???????????????????????????????????????? | | ???????????????????????????????????????? | | ???????????????????????????????????????? | +----------------------------------------------------+ Best States ------------- Heat Dissipation 42 Energy Generation 10 Energy Capacity 250 Matter Stores 300 Matter Capacity 300 Sight Range 16 Terrain Scan Density 10 Evasion (%) 42 Recoil Reduction 2 Item Schematics ----------------- None Robot Schematics ------------------ None Fabricated ------------ Nothing Alien Tech Used ----------------- None Achievements -------------- None Challenges ------------ None Game ------ Seed MakeshiftWeaponsCloak Manual? 0 Play Time 00:26:00 Cumulative 14.9 hours Start 2024.04.23 @ 17:22:48 End 2024.04.23 @ 17:47:58 Sessions 1 Manual Loads 0 Difficulty Rogue Special Mode None Game No. 17 Rogue 17 Adventurer 0 Explorer 0 Win Type - Total 0 Types 0/0/0/0/0/0/0/0/0 Lore% 20 Gallery% 20 Achievement% 18 Wizard Run 0 Options --------- Layout 1 ASCII 0 Keyboard 0 Movement Mouse Keybinds 0 Fullscreen 2 Font 24/Smallcaps Map View 50x35 Zoom Use 0% Tactical HUD 1 Map Filters NONE Filters NONE Steam 1 RUN: fe5a699f-b250-4a5a-a956-89e344d64a61